bitfinex-derivatives/quotes_BTCF0:USTF0_20250405
["timestamp","ask_amount","ask_price","bid_price","bid_amount"]
[1743863845744,0.61534,82970.0,82969.0,0.15207964]
[1743863845948,0.61534,82970.0,82969.0,0.1272411]
[1743863846247,0.5734399,82970.0,82969.0,0.1272411]
[1743863846448,0.2126399,82970.0,82969.0,0.1272411]
[1743863847036,0.12824,82970.0,82969.0,0.1272411]
[1743863847536,0.2126399,82970.0,82969.0,0.1272411]
[1743863848950,0.2126399,82970.0,82969.0,0.06691874]
[1743863850962,0.2126399,82970.0,82969.0,0.00064]
[1743863851258,0.3342399,82970.0,82969.0,0.13284]
[1743863851755,0.3342399,82970.0,82969.0,0.2172409]
[1743863851952,0.3342399,82970.0,82969.0,0.15691854]
[1743863852253,0.3342399,82970.0,82969.0,0.15755854]
[1743863852650,0.3342399,82970.0,82969.0,0.13555854]
[1743863852951,0.3342399,82970.0,82969.0,0.0850409]
[1743863854958,0.3342399,82970.0,82969.0,0.00064]
[1743863855251,0.3342399,82970.0,82969.0,0.0850409]
[1743863856957,0.24984,82970.0,82969.0,0.0850409]
[1743863857153,0.24984,82970.0,82969.0,0.2096409]
[1743863857350,0.12824,82970.0,82969.0,0.3379409]
[1743863857651,0.1255,82977.0,82976.0,0.0843938]
[1743863857954,0.4451908,82979.0,82976.0,0.4254968]
[1743863858258,0.3608,82979.0,82976.0,0.4254968]
[1743863859258,0.08457253,82978.0,82977.0,0.0843927]
[1743863859756,0.08457253,82978.0,82977.0,0.3322927]
[1743863859954,0.00018083,82978.0,82977.0,0.3322927]
[1743863860162,0.00098083,82978.0,82977.0,0.3330127]
[1743863860353,0.00098083,82978.0,82977.0,0.3300127]
[1743863861150,0.00098083,82978.0,82977.0,0.24862]
[1743863861456,0.00098083,82978.0,82977.0,0.3330127]
[1743863863047,0.4451812,82989.0,82983.0,0.0843866]
[1743863863362,0.00116,82984.0,82983.0,0.0851866]
[1743863863556,0.00116,82984.0,82983.0,0.3471866]
[1743863863859,0.0855456,82984.0,82983.0,0.3471866]
[1743863864060,0.0855456,82984.0,82983.0,0.1312]
[1743863864358,0.0855456,82984.0,82983.0,0.0008]
[1743863864561,0.0843876,82982.0,82981.0,0.136388]
[1743863864753,0.0852276,82982.0,82981.0,0.137228]
[1743863865058,0.6968276,82982.0,82981.0,0.137228]
[1743863865766,0.6968276,82982.0,82981.0,0.05284]
[1743863865956,0.6968276,82982.0,82981.0,0.1372287]
[1743863867054,0.6968276,82982.0,82981.0,0.0852287]
[1743863867271,0.6968276,82982.0,82981.0,0.07690634]
[1743863867468,0.6546338,82982.0,82979.0,8e-05]
[1743863867769,0.0843897,82980.0,82979.0,0.0844692]
[1743863868071,0.0843897,82980.0,82979.0,0.1598587]
[1743863868265,0.3374897,82980.0,82979.0,0.1598587]
[1743863869170,0.2531,82980.0,82979.0,0.1598587]
[1743863869561,0.2531,82980.0,82979.0,0.2849587]
[1743863869962,0.3374897,82980.0,82979.0,0.2849587]
[1743863870159,0.3382897,82980.0,82979.0,0.2102095]
[1743863870362,0.3382897,82980.0,82979.0,0.0851095]
[1743863870564,0.3382897,82980.0,82979.0,0.169499]
[1743863871069,0.0008,82980.0,82979.0,0.169499]
[1743863871266,0.1215,82980.0,82979.0,0.169499]
[1743863871465,0.1215,82980.0,82979.0,0.419599]
[1743863871773,0.12142,82980.0,82979.0,0.419599]
[1743863873174,0.12142,82980.0,82979.0,0.3352095]
[1743863873373,0.12142,82980.0,82979.0,0.419599]
[1743863873572,0.00072,82980.0,82979.0,0.419599]
[1743863873779,0.1298,82983.0,82982.0,0.0843876]
[1743863874069,0.13052,82983.0,82982.0,0.4584276]
[1743863876277,0.13052,82983.0,82982.0,0.37404]
[1743863876479,0.13052,82983.0,82982.0,0.4584276]
[1743863876870,0.00072,82983.0,82982.0,0.4584276]
[1743863877075,0.0004,82984.0,82983.0,0.0843866]
[1743863877271,0.1309,82996.0,82991.0,0.0843785]
[1743863877574,0.00094083,82992.0,82991.0,0.1370985]
[1743863877980,0.00094083,82992.0,82991.0,0.3957985]
[1743863879279,0.00094083,82992.0,82991.0,0.31142]
[1743863879480,0.00094083,82992.0,82991.0,0.2144385]
[1743863879680,0.25914083,82992.0,82991.0,0.2663985]
[1743863880981,0.25914083,82992.0,82991.0,0.27539935]
[1743863881781,0.34351833,82992.0,82991.0,0.27539935]
[1743863882081,0.25914083,82992.0,82991.0,0.27539935]
[1743863882380,0.25914083,82992.0,82991.0,0.21507699]
[1743863882580,0.25914083,82992.0,82991.0,0.21571699]
[1743863882779,0.34351833,82992.0,82991.0,0.14597935]
[1743863885287,0.25914083,82992.0,82991.0,0.06160085]
[1743863885584,0.34351833,82992.0,82991.0,0.14597935]
[1743863885983,0.34351833,82992.0,82991.0,0.27797935]
[1743863888384,0.34351833,82992.0,82991.0,0.26961699]
[1743863888592,0.00094083,82992.0,82991.0,0.26961699]
[1743863888789,0.00018083,82992.0,82991.0,0.39101699]
[1743863888978,0.00106083,82992.0,82991.0,0.39101699]
[1743863889273,0.00018083,82992.0,82991.0,0.39101699]
[1743863889978,0.00094083,82992.0,82991.0,0.39101699]
[1743863890489,0.00094083,82992.0,82991.0,0.37201699]
[1743863890686,0.00094083,82992.0,82991.0,0.37265699]
[1743863891093,0.00094083,82992.0,82991.0,0.38170749]
[1743863891386,0.3608,83019.0,83018.0,0.0843511]
[1743863891582,0.26512,83019.0,83018.0,0.0849911]
[1743863891783,0.26512,83019.0,83018.0,0.0850711]
[1743863891983,0.26512,83019.0,83018.0,0.3348711]
[1743863892189,0.26512,83019.0,83018.0,0.6956711]
[1743863892394,0.26512,83019.0,83018.0,0.3348711]
[1743863892595,0.26512,83019.0,83018.0,0.2117711]
[1743863892895,0.26512,83019.0,83018.0,0.0850711]
[1743863893281,0.26512,83019.0,83018.0,0.4458711]
[1743863893482,0.26512,83019.0,83018.0,0.58174091]
[1743863894391,0.26512,83019.0,83018.0,0.49738981]
[1743863894590,0.26512,83019.0,83018.0,0.71424091]
[1743863897493,0.26512,83019.0,83018.0,0.65391855]
[1743863897795,0.26512,83019.0,83018.0,0.65455855]
[1743863897986,0.1279,83026.0,83024.0,0.084345]
[1743863898191,0.10072,83025.0,83024.0,0.084985]
[1743863898391,0.10072,83025.0,83024.0,0.217485]
[1743863899289,0.22382,83025.0,83024.0,0.340485]
[1743863900596,0.22382,83025.0,83024.0,0.25614]
[1743863900799,0.10072,83025.0,83024.0,0.340485]
[1743863901095,0.1288,83037.0,83029.0,0.0843399]
[1743863901392,0.1288,83033.0,83029.0,0.4978199]
[1743863901594,0.1288,83033.0,83029.0,0.7537199]
[1743863901900,0.06084,83030.0,83029.0,0.3929199]
[1743863902093,0.06084,83030.0,83029.0,0.3409999]
[1743863902296,0.06084,83030.0,83029.0,0.3929199]
[1743863903500,0.06084,83030.0,83029.0,0.30858]
[1743863903703,0.06084,83030.0,83029.0,0.3929199]
[1743863906596,0.06084,83030.0,83029.0,0.33259754]
[1743863906800,0.06084,83030.0,83029.0,0.33323754]
[1743863907898,0.1281,83032.0,83029.0,0.33323754]
[1743863908104,0.1224,83040.0,83039.0,0.0843297]
[1743863908305,0.12316,83040.0,83039.0,0.0850897]
[1743863908602,0.2074887,83040.0,83039.0,0.0850897]
[1743863908798,0.2074887,83040.0,83039.0,0.00076]
[1743863908994,0.0421649,83039.0,83038.0,0.0843298]
[1743863909190,0.0843368,83032.0,83031.0,0.00018072]
[1743863909504,0.4451358,83033.0,83032.0,0.0843368]
[1743863909802,0.4459358,83033.0,83032.0,0.0851768]
[1743863910003,0.4459358,83033.0,83032.0,0.00084]
[1743863910506,0.0843368,83032.0,83031.0,0.08451842]
[1743863910799,0.0843368,83032.0,83031.0,0.00018072]
[1743863910997,0.0843368,83032.0,83031.0,0.08451852]
[1743863911199,0.2085368,83032.0,83031.0,0.08451852]
[1743863911903,0.2085368,83032.0,83031.0,0.00018072]
[1743863912103,0.0421704,83028.0,83025.0,8e-05]
[1743863912295,0.4451429,83026.0,83025.0,8e-05]
[1743863912606,0.4451429,83026.0,83022.0,0.0421734]
[1743863912806,0.084346,83024.0,83023.0,0.084346]
[1743863913301,0.2121439,83025.0,83024.0,0.084345]
[1743863913695,0.1278,83025.0,83024.0,0.084345]
[1743863914095,0.1278,83025.0,83020.0,0.0422542]
[1743863914096,0.084348,83021.0,83020.0,8e-05]
[1743863914605,0.08435,83019.0,83018.0,0.4451511]
[1743863914793,0.0843531,83016.0,83011.0,8e-05]
[1743863914996,0.0843572,83012.0,83011.0,8e-05]
[1743863915193,0.4457972,83012.0,83011.0,8e-05]
[1743863915511,0.084362,83008.0,83007.0,0.0843622]
[1743863915703,0.085162,83008.0,83007.0,0.00092]
[1743863916202,0.085162,83008.0,83007.0,8e-05]
[1743863916406,0.0843622,83007.0,83006.0,0.1687253]
[1743863916607,0.2072222,83007.0,83006.0,0.1694853]
[1743863917207,0.2072222,83007.0,83006.0,0.1474853]
[1743863917409,0.12286,83007.0,83006.0,0.1474853]
[1743863918415,0.2072222,83007.0,83006.0,0.1474853]
[1743863918810,0.2072222,83007.0,83006.0,0.1694852]
[1743863918811,0.12286,83007.0,83006.0,0.1694852]
[1743863920013,0.2072222,83007.0,83006.0,0.1694852]
[1743863920308,0.00076,83007.0,83006.0,0.1694852]
[1743863920609,0.3608,83028.0,83006.0,0.1694852]
[1743863920610,0.1293,83008.0,83007.0,0.0843622]
[1743863920812,0.1293,83008.0,83007.0,0.2177022]
[1743863921704,0.1293,83008.0,83007.0,0.13334]
[1743863922003,0.1293,83008.0,83007.0,0.2177022]
[1743863923208,0.00018072,83015.0,83014.0,0.0843551]
[1743863923514,0.00094072,83015.0,83014.0,0.0851151]
[1743863923812,0.00094072,83015.0,83014.0,0.2120151]
[1743863924513,0.00094072,83015.0,83014.0,0.3360151]
[1743863924807,0.00094072,83015.0,83014.0,0.3230151]
[1743863925013,0.00094072,83015.0,83014.0,0.6844551]
[1743863925211,0.00018072,83015.0,83014.0,0.6844551]
[1743863925615,0.00018072,83015.0,83014.0,0.8167551]
[1743863926908,0.1233,83028.0,83027.0,0.0843419]
[1743863927108,0.12398,83028.0,83027.0,0.0849819]
[1743863927304,0.12398,83028.0,83027.0,0.3441819]
[1743863928219,0.12398,83028.0,83027.0,0.4746819]
[1743863929016,0.1233,83028.0,83027.0,0.4746819]
[1743863929609,0.00018072,83036.0,83035.0,0.0843338]
[1743863929815,0.00086072,83036.0,83035.0,0.0843338]
[1743863930013,0.00086072,83036.0,83035.0,0.0850138]
[1743863930213,0.00086072,83036.0,83035.0,0.2094138]
[1743863930913,0.00086072,83036.0,83035.0,0.24718]
[1743863931320,0.00086072,83036.0,83035.0,0.3315138]
[1743863931718,0.3612,83056.0,83049.0,0.0843196]
[1743863931719,0.2413,83055.0,83049.0,0.0843196]
[1743863931911,0.3256142,83055.0,83049.0,0.0820796]
[1743863932222,0.20084,83050.0,83049.0,0.0813196]
[1743863932423,0.2851586,83050.0,83049.0,0.00076]
[1743863932627,0.2851586,83050.0,83040.0,0.01276122]
[1743863932628,0.1264909,83043.0,83042.0,0.1264875]
[1743863932812,0.0429232,83043.0,83042.0,0.1272875]
[1743863933019,0.0429232,83043.0,83042.0,0.1273675]
[1743863933337,0.0850857,83043.0,83042.0,0.2494675]
[1743863933534,0.0850857,83043.0,83042.0,0.3817675]
[1743863933831,0.0850857,83043.0,83042.0,0.40578502]
[1743863935028,0.2127857,83043.0,83042.0,0.40578502]
[1743863935636,0.2127857,83043.0,83042.0,0.41505493]
[1743863936938,0.2127857,83043.0,83042.0,0.34887451]
[1743863937328,0.2127857,83043.0,83042.0,0.39103741]
[1743863938338,0.2127857,83043.0,83042.0,0.0008]
[1743863938339,0.3370857,83043.0,83042.0,0.0008]
[1743863938636,0.3370857,83043.0,83041.0,0.00018072]
[1743863938637,0.0843267,83042.0,83041.0,0.00018072]
[1743863938836,0.4459267,83042.0,83041.0,0.00094072]
[1743863939039,0.6921267,83042.0,83041.0,0.00094072]
[1743863939235,0.6921267,83042.0,83041.0,0.08526842]
[1743863939934,0.0843277,83041.0,83040.0,8e-05]
[1743863940139,0.0851277,83041.0,83040.0,0.0008]
[1743863940341,0.3374277,83041.0,83040.0,0.0851287]
[1743863941142,0.3374277,83041.0,83040.0,0.0008]
[1743863941442,0.3374277,83041.0,83040.0,0.00072]
[1743863941639,0.0843328,83037.0,83036.0,0.0843319]
[1743863941835,0.0850528,83037.0,83036.0,0.0850119]
[1743863942037,0.3373528,83037.0,83036.0,0.0850119]
[1743863943051,0.3373528,83037.0,83036.0,0.00068]
[1743863943343,0.3373528,83037.0,83036.0,0.0850119]
[1743863944344,0.3373528,83037.0,83036.0,0.2068119]
[1743863946037,0.3373528,83037.0,83036.0,0.1218]
[1743863946238,0.3373528,83037.0,83036.0,0.2067728]
[1743863946639,0.3373528,83037.0,83036.0,0.1867728]
[1743863948651,0.3373528,83037.0,83036.0,0.0849728]
[1743863949050,0.3373528,83037.0,83034.0,0.05119215]
[1743863949051,0.0843338,83035.0,83034.0,0.05119215]
[1743863949255,0.08545381,83035.0,83034.0,0.05231215]
[1743863949549,0.33295381,83035.0,83034.0,0.05231215]
[1743863950247,0.33295381,83035.0,83034.0,0.18501215]
[1743863950448,0.33295381,83035.0,83034.0,0.14284485]
[1743863951044,0.69375381,83035.0,83034.0,0.14284485]
[1743863951244,0.69375381,83035.0,83034.0,0.22717965]
[1743863951453,0.33295381,83035.0,83034.0,0.34747965]
[1743863952154,0.33295381,83035.0,83034.0,0.28717257]
[1743863954357,0.33295381,83035.0,83034.0,0.26517257]
[1743863955156,0.33295381,83035.0,83034.0,0.20486549]
[1743863958161,0.33295381,83035.0,83034.0,0.1203]
[1743863958854,0.21215381,83035.0,83034.0,0.2046348]
[1743863959364,0.12782001,83035.0,83034.0,0.2046348]
[1743863959766,0.1267,83035.0,83034.0,0.2046348]
[1743863961157,0.1267,83035.0,83034.0,0.14432772]
[1743863961352,0.0843348,83034.0,83033.0,0.00908409]
[1743863961554,0.0843358,83033.0,83032.0,0.08451692]
[1743863961758,0.2061358,83033.0,83032.0,0.00018072]
[1743863962058,0.3384358,83033.0,83032.0,0.0843368]
[1743863962459,0.3384358,83033.0,83032.0,0.2100368]
[1743863963173,0.3384358,83033.0,83032.0,0.21927525]
[1743863963671,0.3384358,83033.0,83032.0,0.09357525]
[1743863964061,0.3399558,83033.0,83032.0,0.09357525]
[1743863964260,0.3399558,83033.0,83032.0,0.00923845]
[1743863964461,0.3399558,83033.0,83031.0,0.0421689]
[1743863964661,0.3821237,83033.0,83032.0,0.0843368]
[1743863965072,0.0843368,83032.0,83031.0,0.1275]
[1743863965266,0.0843378,83031.0,83030.0,8e-05]
[1743863965460,0.0843439,83025.0,83024.0,0.00018072]
[1743863965773,0.0843439,83025.0,83024.0,0.08452572]
[1743863966068,0.3493639,83025.0,83024.0,0.08452572]
[1743863966272,0.3478439,83025.0,83024.0,0.08452572]
[1743863966569,0.3478439,83025.0,83024.0,0.21202572]
[1743863967271,0.3478439,83025.0,83024.0,0.1275]
[1743863967969,0.7086439,83025.0,83024.0,0.1275]
[1743863968171,0.7086439,83025.0,83024.0,0.2561]
[1743863968369,0.7086439,83025.0,83024.0,0.340445]
[1743863970273,0.7086439,83025.0,83024.0,0.28013792]
[1743863973171,0.3478439,83025.0,83024.0,0.28013792]
[1743863973367,0.7086439,83025.0,83024.0,0.212945]
[1743863974277,0.3478439,83025.0,83024.0,0.212945]
[1743863974466,0.7086439,83025.0,83024.0,0.212945]
[1743863974773,0.1265185,83024.0,83023.0,0.0843454]
[1743863975269,0.2836725,83024.0,83022.0,0.042253]
[1743863975576,0.084346,83023.0,83022.0,8e-05]
[1743863975774,0.327286,83023.0,83022.0,8e-05]
[1743863976373,0.327286,83023.0,83022.0,0.084347]
[1743863979377,0.369459,83023.0,83021.0,0.042174]
[1743863979767,0.369459,83023.0,83022.0,0.084347]
[1743863981668,0.369459,83023.0,83022.0,0.206847]
[1743863982479,0.369459,83023.0,83022.0,0.1225]
[1743863982977,0.285113,83023.0,83022.0,0.206847]
[1743863983177,0.285113,83023.0,83022.0,0.330447]
[1743863983377,0.12264,83023.0,83022.0,0.330447]
[1743863984379,0.205546,83023.0,83022.0,0.330447]
[1743863985570,0.205546,83023.0,83022.0,0.27013992]
[1743863987375,0.207066,83023.0,83022.0,0.27013992]
[1743863988481,0.207066,83023.0,83022.0,0.20983284]
[1743863990576,0.12272,83023.0,83022.0,0.20983284]
[1743863991680,0.12272,83023.0,83022.0,0.207947]
[1743863992275,0.207066,83023.0,83022.0,0.207947]
[1743863992471,0.207066,83023.0,83022.0,0.1236]
[1743863992677,0.084348,83021.0,83020.0,0.09343386]
[1743863992978,0.084348,83021.0,83020.0,0.137109]
[1743863993280,0.213748,83021.0,83020.0,0.137109]
[1743863993584,0.343888,83021.0,83020.0,0.137109]
[1743863994086,0.343888,83021.0,83020.0,0.260509]
[1743863994281,0.25954,83021.0,83020.0,0.26977761]
[1743863994484,0.13084,83021.0,83020.0,0.26977761]
[1743863997091,0.1294,83021.0,83020.0,0.26977761]
[1743863997589,0.1294,83021.0,83020.0,0.26215053]
[1743863997790,0.1294,83021.0,83020.0,0.34125053]
[1743864000784,0.1294,83021.0,83020.0,0.28094345]
[1743864003694,0.1294,83021.0,83020.0,0.22063637]
[1743864004390,0.1294,83021.0,83020.0,0.14153637]
[1743864004692,0.213748,83021.0,83020.0,0.14153637]
[1743864004893,0.213748,83021.0,83020.0,0.00450737]
[1743864005094,0.0421745,83020.0,83019.0,8e-05]
[1743864005289,0.2571235,83020.0,83019.0,8e-05]
[1743864005487,0.2571235,83020.0,83019.0,0.0091552]
[1743864005692,0.0421756,83018.0,83016.0,0.40315722]
[1743864005895,0.1306,83017.0,83016.0,0.48751032]
[1743864006088,0.13208,83017.0,83016.0,0.48751032]
[1743864006800,0.2164321,83017.0,83016.0,0.0421765]
[1743864006997,0.3456321,83017.0,83016.0,0.0421765]
[1743864008299,0.0843602,83009.0,83008.0,0.00026072]
[1743864008498,0.0421837,83002.0,82993.0,0.126]
[1743864008696,0.0843734,82996.0,82995.0,0.16934744]
[1743864009003,0.0858934,82996.0,82995.0,0.00060244]
[1743864009207,0.4700934,82996.0,82995.0,0.00060244]
[1743864009596,0.0843775,82992.0,82991.0,0.1265668]
[1743864009796,0.0843887,82981.0,82980.0,0.29110075]
[1743864010012,0.0843887,82981.0,82980.0,0.37549045]
[1743864010503,0.3368887,82981.0,82980.0,0.37549045]
[1743864010711,0.4596887,82981.0,82980.0,0.37549045]
[1743864011003,0.0843897,82980.0,82979.0,8e-05]
[1743864011198,0.0859097,82980.0,82979.0,8e-05]
[1743864011404,0.3384097,82980.0,82979.0,0.0844707]
[1743864011906,0.3384097,82980.0,82979.0,0.0843907]
[1743864012710,0.25402,82980.0,82979.0,0.0843907]
[1743864012913,0.25402,82980.0,82978.0,0.0843913]
[1743864013206,0.25402,82980.0,82979.0,0.0843907]
[1743864016015,0.3384097,82980.0,82979.0,0.0843907]
[1743864016912,0.25402,82980.0,82979.0,0.0843907]
[1743864018609,0.3384097,82980.0,82979.0,0.0843907]
[1743864018914,0.3384097,82980.0,82974.0,0.36088]
[1743864018915,0.0843927,82977.0,82974.0,0.43633135]
[1743864019108,0.0843948,82975.0,82974.0,0.0421974]
[1743864019607,0.2468904,82977.0,82976.0,0.0843938]
[1743864020010,0.2483304,82977.0,82976.0,0.0843938]
[1743864021212,0.12174,82977.0,82976.0,0.0843938]
[1743864021806,0.00144,82977.0,82976.0,0.0843938]
[1743864022010,0.0843838,82986.0,82985.0,0.0843846]
[1743864023610,0.0858638,82986.0,82985.0,0.0843846]
[1743864024917,0.0858638,82986.0,82984.0,0.0421928]
[1743864025111,0.0858638,82986.0,82985.0,0.0843846]
[1743864026411,0.4466638,82986.0,82985.0,0.0843846]
[1743864027317,0.0858638,82986.0,82985.0,0.0843846]
[1743864027616,0.4466638,82986.0,82985.0,0.0843846]
[1743864028009,0.4888556,82986.0,82984.0,0.0421928]
[1743864028317,0.4044718,82986.0,82985.0,0.0843846]
[1743864028616,0.36228,82986.0,82985.0,0.0843846]
[1743864028807,0.4466636,82986.0,82985.0,0.0843846]
[1743864030907,0.5719636,82986.0,82985.0,0.0843846]
[1743864031108,0.6563482,82986.0,82984.0,0.0421928]
[1743864031315,0.5719636,82986.0,82985.0,0.0843846]
[1743864034023,0.6141554,82986.0,82984.0,0.0421928]
[1743864034222,0.6141554,82986.0,82985.0,0.0843846]
[1743864035722,0.6588718,82986.0,82985.0,0.0843846]
[1743864036312,0.12678,82986.0,82985.0,0.0843846]
[1743864036517,0.3608,83004.0,83003.0,0.0843663]
[1743864036722,0.4461653,83004.0,83003.0,0.0843663]
[1743864036922,0.0843697,83001.0,83000.0,0.084368]
[1743864037117,0.1687418,82999.0,82997.0,0.05228]
[1743864037315,0.0843714,82998.0,82997.0,0.1366519]
[1743864037517,0.2080714,82998.0,82997.0,0.0843719]
[1743864038011,0.0843734,82996.0,82995.0,8e-05]
[1743864038217,0.4451734,82996.0,82995.0,8e-05]
[1743864038427,0.0843744,82995.0,82994.0,0.0843747]
[1743864038815,0.0843744,82995.0,82993.0,8e-05]
[1743864038816,0.0843754,82994.0,82993.0,8e-05]
[1743864039021,0.0843785,82991.0,82990.0,0.0843791]
[1743864039221,0.0843785,82991.0,82990.0,0.0844591]
[1743864039526,0.0853785,82991.0,82990.0,0.0844591]
[1743864040023,0.2090785,82991.0,82990.0,0.0844591]
[1743864040229,0.1247,82991.0,82990.0,0.2054591]
[1743864041119,0.1247,82991.0,82990.0,0.3284591]
[1743864042125,0.1247,82991.0,82990.0,0.2054591]
[1743864042520,0.2513,82991.0,82990.0,0.2054591]
[1743864043227,0.2513,82991.0,82990.0,0.14515202]
[1743864043632,0.2513,82991.0,82990.0,0.0843791]
[1743864045432,0.3356785,82991.0,82990.0,0.0843791]
[1743864047528,0.1247,82991.0,82990.0,0.0843791]
[1743864047734,0.1237,82991.0,82990.0,0.2946791]
[1743864049331,0.1237,82991.0,82990.0,0.2103]
[1743864050136,0.1237,82991.0,82990.0,0.2946791]
[1743864050331,0.1237,82991.0,82990.0,0.2953191]
[1743864050736,0.4029829,83004.0,82990.0,0.2953191]
[1743864050737,0.3608,83004.0,82992.0,0.0421886]
[1743864050937,0.3608,83004.0,82996.0,0.0843734]
[1743864050938,0.1236,82997.0,82996.0,0.0843734]
[1743864051135,0.1246,82997.0,82996.0,0.4297134]
[1743864051331,0.1246,82997.0,82996.0,0.0850134]
[1743864051732,0.2089724,82997.0,82996.0,0.0850134]
[1743864052130,0.3295724,82997.0,82996.0,0.0850134]
[1743864052328,0.3295724,82997.0,82996.0,0.00064]
[1743864053237,0.3295724,82997.0,82996.0,0.0850134]
[1743864054537,0.2452,82997.0,82996.0,0.0850134]
[1743864055232,0.2452,82997.0,82995.0,0.0421872]
[1743864055432,0.2452,82997.0,82996.0,0.0843734]
[1743864055639,0.1246,82997.0,82996.0,0.0843734]
[1743864055837,0.1246,82997.0,82996.0,0.2944734]
[1743864058342,0.1246,82997.0,82996.0,0.2101]
[1743864059243,0.1246,82997.0,82996.0,0.2944734]
[1743864061448,0.1246,82997.0,82996.0,0.23416632]
[1743864064041,0.1246,82997.0,82996.0,0.0843734]
[1743864064449,0.0421867,82996.0,82994.0,0.4029876]
[1743864064649,0.0421867,82996.0,82995.0,0.0843743]
[1743864064650,0.1688867,82996.0,82995.0,0.0843743]
[1743864065151,0.17008671,82996.0,82995.0,0.0850143]
[1743864065353,0.12790001,82996.0,82995.0,0.0850143]
[1743864069556,0.21227341,82996.0,82995.0,0.0850143]
[1743864070457,0.21227341,82996.0,82994.0,0.0421876]
[1743864070652,0.21227341,82996.0,82995.0,0.0843743]
[1743864071659,0.12790001,82996.0,82995.0,0.0843743]
[1743864072146,0.00018072,83006.0,83003.0,0.0843663]
[1743864072349,0.36220001,83004.0,83003.0,0.0843663]
[1743864072556,0.36220001,83004.0,83003.0,0.2156663]
[1743864073456,0.36220001,83004.0,83003.0,0.1313]
[1743864073859,0.36220001,83004.0,83003.0,0.2156663]
[1743864076558,0.36220001,83004.0,83003.0,0.15535922]
[1743864077355,0.36220001,83004.0,83003.0,0.1709808]
[1743864078254,0.44656531,83004.0,83003.0,0.1709808]
[1743864078465,0.48920001,83004.0,83003.0,0.1709808]
[1743864079061,0.12840001,83004.0,83003.0,0.1709808]
[1743864079650,0.12840001,83004.0,83003.0,0.11067372]
[1743864080560,0.25680001,83004.0,83003.0,0.11067372]
[1743864082663,0.25680001,83004.0,83003.0,0.05036664]
[1743864085670,0.25680001,83004.0,83002.0,0.03224316]
[1743864086361,0.25680001,83004.0,83003.0,0.0843663]
[1743864088762,0.25680001,83004.0,83002.0,0.04775781]
[1743864089069,0.34116621,83004.0,83003.0,0.0843663]
[1743864091688,0.34116621,83004.0,83002.0,0.09983781]
[1743864091985,0.34116621,83004.0,83003.0,0.0843663]
[1743864092777,0.0843663,83003.0,83002.0,0.06759465]
[1743864092985,0.0843663,83003.0,83002.0,0.06751465]
[1743864093181,0.3324663,83003.0,83002.0,0.06751465]
[1743864093391,0.33386631,83003.0,83002.0,0.01551465]
[1743864093593,0.0421857,82998.0,82996.0,0.052]
[1743864093788,0.3746586,82997.0,82996.0,0.1363734]
[1743864094180,0.3746586,82997.0,82996.0,0.1364534]
[1743864094181,0.2902862,82997.0,82996.0,0.1364534]
[1743864094378,0.2902862,82997.0,82996.0,0.1363734]
[1743864094578,0.29168621,82997.0,82996.0,0.1363734]
[1743864094790,0.29168621,82997.0,82996.0,0.07606632]
[1743864094986,0.29168621,82997.0,82996.0,0.09132498]
[1743864095485,0.24950001,82997.0,82996.0,0.09132498]
[1743864097789,0.24950001,82997.0,82996.0,0.01525866]
[1743864098197,0.24950001,82997.0,82995.0,0.0421871]
[1743864098990,0.24950001,82997.0,82996.0,0.0843734]
[1743864099185,0.0843632,83007.0,83005.0,0.0843643]
[1743864099493,0.0843632,83007.0,83002.0,0.0421832]
[1743864099494,0.3608,83030.0,83009.0,0.04218]
[1743864099683,0.4029696,83030.0,83019.0,0.08435]
[1743864099878,0.0843431,83026.0,83019.0,0.08435]
[1743864100188,0.042171,83027.0,83019.0,0.08507]
[1743864100379,0.0843434,83026.0,83019.0,0.08507]
[1743864100580,0.00136001,83020.0,83019.0,0.10969973]
[1743864100780,0.0004,83020.0,83019.0,0.02534973]
[1743864101090,0.0014,83020.0,83019.0,0.02534973]
[1743864101775,0.0014,83020.0,83019.0,0.10969973]
[1743864101980,0.0004,83020.0,83019.0,0.10969973]
[1743864102386,0.00136001,83020.0,83019.0,0.10969973]
[1743864102581,0.08570901,83020.0,83019.0,0.09427846]
[1743864102885,0.08570901,83020.0,83019.0,0.00992846]
[1743864103086,0.08570901,83020.0,83019.0,0.00072]
[1743864103285,0.21770901,83020.0,83019.0,0.00072]
[1743864103487,0.13336001,83020.0,83019.0,0.09417459]
[1743864103791,0.1324,83020.0,83019.0,0.00910459]
[1743864103991,0.13360001,83020.0,83019.0,0.01030459]
[1743864104194,0.13360001,83020.0,83019.0,0.08555]
[1743864106897,0.13360001,83020.0,83018.0,0.0421755]
[1743864107078,0.1281,83019.0,83018.0,0.0421755]
[1743864107285,0.1281,83019.0,83018.0,0.05102588]
[1743864107586,0.1324,83020.0,83019.0,0.08435]
[1743864107787,0.13396001,83020.0,83019.0,0.20935]
[1743864109992,0.13396001,83020.0,83019.0,0.125]
[1743864110188,0.13396001,83020.0,83019.0,0.20935]
[1743864111294,0.13396001,83020.0,83019.0,0.33775]
[1743864112889,0.13396001,83020.0,83019.0,0.27744292]
[1743864116196,0.13396001,83020.0,83019.0,0.21275]
[1743864118504,0.13396001,83020.0,83019.0,0.08435]
[1743864118688,0.13396001,83020.0,83019.0,0.20445]
[1743864118997,0.13396001,83020.0,83019.0,0.1201]
[1743864119499,0.13396001,83020.0,83018.0,0.05102588]
[1743864119698,0.1329,83019.0,83018.0,0.25887698]
[1743864120100,0.13446001,83019.0,83018.0,0.25887698]
[1743864122099,0.13446001,83019.0,83018.0,0.1985699]
[1743864122402,0.13446001,83019.0,83018.0,0.13568095]
[1743864122789,0.00156001,83019.0,83018.0,0.26468095]
[1743864122993,0.1324,83020.0,83019.0,0.08435]
[1743864123405,0.1324,83020.0,83019.0,0.21335]
[1743864123701,0.13404,83020.0,83019.0,0.21335]
[1743864124601,0.00164,83020.0,83019.0,0.21335]
[1743864124907,0.6199,83049.0,83048.0,0.0843206]
[1743864125092,0.0843214,83048.0,83037.0,0.03381772]
[1743864125403,0.0843214,83048.0,83041.0,0.0421635]
[1743864125404,0.04320061,83048.0,83041.0,0.0421635]
[1743864125606,0.0843237,83045.0,83044.0,0.0843233]
[1743864126104,0.08544371,83045.0,83044.0,0.0843233]
[1743864126704,0.20754371,83045.0,83044.0,0.0843233]
[1743864126905,0.33324371,83045.0,83044.0,0.0843233]
[1743864127203,0.24892001,83045.0,83044.0,0.0843233]
[1743864127704,0.33324361,83045.0,83044.0,0.0843233]
[1743864128104,0.33324361,83045.0,83043.0,0.0843248]
[1743864128307,0.24892001,83045.0,83044.0,0.0843233]
[1743864129105,0.24892001,83045.0,83044.0,0.0850433]
[1743864129599,0.24892001,83045.0,83044.0,0.10461967]